bitfinex-derivatives/quotes_ETHF0:USTF0_20260209
["timestamp","ask_amount","ask_price","bid_price","bid_amount"]
[1770675234308,0.0055683,2124.0,2123.2,11.50521185]
[1770675235103,0.0055683,2124.0,2123.2,14.29852694]
[1770675235309,0.0055683,2124.0,2123.2,11.50521185]
[1770675235509,11.17080667,2124.0,2123.2,11.50521185]
[1770675236008,11.17080667,2124.0,2122.8,11.50050888]
[1770675236009,11.16523837,2123.9,2122.8,11.50050888]
[1770675237106,11.16523837,2123.9,2122.8,11.50629041]
[1770675242315,0.0055683,2124.0,2122.8,11.50629041]
[1770675242909,0.0055683,2124.0,2123.0,11.50050888]
[1770675243418,0.0055683,2124.0,2123.0,14.29382397]
[1770675243718,0.0055683,2124.0,2123.2,11.50050888]
[1770675245811,0.00086533,2124.0,2123.2,11.50050888]
[1770675246113,11.1661037,2124.0,2123.2,11.50050888]
[1770675246915,11.4016637,2124.0,2122.9,11.50050888]
[1770675247114,11.16523837,2123.7,2122.8,0.00578153]
[1770675247316,11.16523837,2123.3,2122.1,11.50050888]
[1770675247614,11.16523837,2123.2,2122.1,11.50050888]
[1770675248318,11.16523837,2123.2,2122.1,11.50646178]
[1770675248916,11.16523837,2123.4,2122.1,11.50646178]
[1770675249714,11.16523837,2123.6,2122.1,11.50646178]
[1770675250111,11.16523837,2123.6,2122.2,0.23575]
[1770675250316,30.463,2123.9,2122.3,11.50050888]
[1770675250317,11.16523837,2123.8,2122.3,11.50050888]
[1770675253024,11.16523837,2123.8,2122.5,11.50050888]
[1770675254418,11.40080837,2123.8,2122.5,11.50050888]
[1770675255725,11.16523837,2123.8,2122.5,11.50050888]
[1770675257820,11.16523837,2123.8,2122.2,2.79331509]
[1770675257821,11.16523837,2123.6,2122.2,2.79331509]
[1770675258023,11.16523837,2123.4,2122.3,11.50050888]
[1770675258331,11.16523837,2123.2,2122.3,11.50050888]
[1770675258829,11.16523837,2123.0,2122.1,11.50646178]
[1770675259031,11.16523837,2123.0,2122.1,0.0059529]
[1770675259822,0.23567,2122.9,2122.1,0.0059529]
[1770675260131,11.07150801,2122.8,2122.1,0.0059529]
[1770675260328,11.07150801,2122.8,2122.1,11.64840753]
[1770675261124,11.07150801,2122.8,2122.1,0.0059529]
[1770675261425,11.07150801,2122.8,2121.4,11.64245463]
[1770675261833,10.49198615,2122.6,2121.4,11.64245463]
[1770675262235,10.49198615,2122.4,2121.4,11.64245463]
[1770675262531,10.4964369,2122.4,2121.4,11.64751418]
[1770675265030,10.49198615,2122.2,2121.4,11.64751418]
[1770675265735,10.4964369,2122.4,2121.4,11.64751418]
[1770675268036,0.00445075,2122.4,2121.4,11.64751418]
[1770675268535,10.4964369,2122.4,2121.4,11.64751418]
[1770675269032,10.7321669,2122.4,2121.4,11.64751418]
[1770675270941,10.49198615,2122.1,2121.1,11.64245463]
[1770675271343,10.49198615,2122.1,2120.8,11.64245463]
[1770675271834,10.49198615,2121.9,2120.8,11.64814657]
[1770675272439,10.49198615,2121.7,2120.8,11.64814657]
[1770675272829,10.49198615,2121.7,2120.8,0.00569194]
[1770675273030,10.49198615,2121.5,2120.4,11.64245463]
[1770675273438,10.49198615,2121.3,2119.6,11.64245463]
[1770675274046,10.49198615,2121.1,2119.6,11.64693488]
[1770675274231,10.49198615,2120.9,2119.6,11.64693488]
[1770675274542,10.49557657,2120.9,2119.6,11.64693488]
[1770675275537,10.49198615,2120.7,2119.6,11.64693488]
[1770675275842,10.49198615,2120.5,2119.6,0.00448025]
[1770675276145,10.49198615,2120.5,2119.4,10.66436125]
[1770675277435,10.49198615,2120.5,2119.4,10.66966578]
[1770675279644,10.49198615,2120.3,2119.4,0.00530453]
[1770675279841,10.49198615,2120.3,2119.4,11.64775916]
[1770675280040,10.49198615,2120.5,2119.4,11.64775916]
[1770675281544,10.49198615,2120.6,2119.4,11.64775916]
[1770675283645,10.49198615,2120.7,2119.4,11.64775916]
[1770675291448,10.49198615,2120.7,2119.6,11.30137053]
[1770675293152,10.76384552,2120.8,2119.6,11.30137053]
[1770675295456,10.76743594,2120.9,2119.8,11.30137053]
[1770675296247,3.05219858,2121.6,2120.4,11.30137053]
[1770675296248,10.76384552,2121.6,2120.4,11.30137053]
[1770675296649,10.76384552,2121.8,2120.6,11.30137053]
[1770675296850,12.82917515,2122.9,2120.6,11.30137053]
[1770675296851,10.76384552,2122.8,2121.6,11.30137053]
[1770675297052,10.76384552,2123.2,2122.0,11.30137053]
[1770675297348,5.63765417,2124.2,2122.8,11.30137053]
[1770675297349,10.76384552,2124.2,2122.8,11.30137053]
[1770675297552,10.99931552,2124.7,2123.0,11.30137053]
[1770675297747,10.76384552,2124.7,2123.3,0.23562]
[1770675297949,10.76384552,2125.2,2123.4,11.30137053]
[1770675298151,10.76970762,2125.2,2123.5,11.30137053]
[1770675298350,10.76970762,2125.2,2123.5,11.30715052]
[1770675300352,10.76384552,2123.7,2122.8,11.30137053]
[1770675300656,10.76384552,2123.7,2121.6,11.30137053]
[1770675300657,10.76384552,2123.1,2121.6,11.30137053]
[1770675300855,10.76384552,2123.6,2121.8,11.30137053]
[1770675301255,10.76787748,2123.6,2121.8,11.30686075]
[1770675301557,10.76384552,2123.2,2121.8,11.30686075]
[1770675302453,10.76384552,2122.8,2121.8,11.30686075]
[1770675302756,10.76384552,2122.8,2121.8,0.00091189]
[1770675302947,10.76384552,2122.6,2121.1,11.30137053]
[1770675303152,10.76384552,2122.4,2121.1,11.30137053]
[1770675303350,10.76384552,2122.4,2120.7,0.26965367]
[1770675303351,10.76384552,2122.0,2120.8,11.30137053]
[1770675303559,0.23578,2121.9,2120.8,11.30137053]
[1770675303859,10.76384552,2121.8,2120.8,11.30137053]
[1770675304055,10.76384552,2121.4,2120.8,4.6e-06]
[1770675304360,10.76384552,2121.3,2120.2,11.30137053]
[1770675304653,10.76384552,2121.3,2119.3,11.30137053]
[1770675305158,10.76384552,2121.3,2119.8,11.30137053]
[1770675308362,10.76384552,2121.6,2120.0,11.30137053]
[1770675308663,10.76718262,2121.8,2120.2,11.30137053]
[1770675309254,10.76718262,2121.8,2120.4,11.30137053]
[1770675309663,0.0033371,2121.8,2120.4,11.30137053]
[1770675309961,0.0033371,2121.8,2120.6,11.30137053]
[1770675311660,0.0033371,2121.8,2120.8,11.30137053]
[1770675311858,10.76384552,2122.3,2120.8,11.30620088]
[1770675312752,10.76811533,2122.3,2120.8,11.30620088]
[1770675313154,10.76384552,2122.1,2120.8,11.30620088]
[1770675313467,10.76384552,2121.7,2120.8,11.30620088]
[1770675313759,10.76384552,2122.0,2120.8,11.30620088]
[1770675316067,10.76384552,2122.2,2120.8,11.30620088]
[1770675317662,0.00426981,2122.3,2121.0,11.30137053]
[1770675319068,10.76811533,2122.3,2121.0,11.30137053]
[1770675319266,10.76384552,2121.9,2121.0,11.30137053]
[1770675319463,10.54817243,2121.7,2120.8,0.00483035]
[1770675320964,10.54817243,2121.7,2120.8,11.46532227]
[1770675321565,10.54817243,2121.7,2120.8,0.00483035]
[1770675322369,11.4368777,2121.5,2120.8,0.00483035]
[1770675324569,11.4368777,2121.5,2120.8,11.46532227]
[1770675325271,11.4368777,2121.9,2120.8,11.46532227]
[1770675326984,0.00426981,2122.3,2120.8,11.46532227]
[1770675326985,11.44114751,2122.3,2120.8,11.46532227]
[1770675327585,11.44114751,2122.3,2121.0,11.46049192]
[1770675328583,11.44114751,2122.3,2121.2,11.46049192]
[1770675329282,0.00426981,2122.3,2121.2,11.46049192]
[1770675329580,0.00426981,2122.3,2121.2,14.23479829]
[1770675332883,11.44114751,2122.3,2121.2,14.23479829]
[1770675333791,11.44114751,2122.3,2121.2,11.46049192]
[1770675335086,1e-08,2122.3,2121.4,11.46049192]
[1770675335286,1e-08,2122.3,2121.4,14.23479829]
[1770675335886,1e-08,2122.3,2121.6,11.46049192]
[1770675337085,1e-08,2122.3,2121.3,4.43862322]
[1770675337086,11.43687771,2122.3,2121.3,2.77430637]
[1770675337289,11.43687771,2122.3,2121.2,11.46049192]
[1770675337988,11.67261771,2122.3,2121.2,11.46049192]
[1770675339484,11.4368777,2122.2,2120.9,11.46049192]
[1770675339689,11.4368777,2122.0,2120.9,11.46049192]
[1770675342489,1e-08,2122.3,2121.1,11.46049192]
[1770675342685,1e-08,2122.3,2121.0,2.77430637]
[1770675342686,1e-08,2122.3,2121.3,11.46049192]
[1770675342882,1e-08,2122.3,2121.5,11.46049192]
[1770675343087,1e-08,2122.3,2121.5,14.23479829]
[1770675343289,1e-08,2122.3,2121.5,11.46049192]
[1770675343689,11.4368777,2122.6,2121.5,14.23479829]
[1770675344193,11.4368777,2122.6,2121.5,11.46049192]
[1770675344791,11.44246577,2122.6,2121.5,11.46049192]
[1770675345589,0.00558807,2122.6,2121.5,14.23479829]
[1770675345793,11.44246577,2122.6,2121.7,11.46049192]
[1770675346384,11.4368777,2122.4,2121.3,14.23479829]
[1770675346587,11.4368777,2122.4,2121.3,11.46049192]
[1770675346895,11.4368777,2122.2,2121.3,11.46049192]
[1770675348693,11.4368777,2122.2,2121.0,11.46049192]
[1770675350096,14.29912431,2122.0,2120.8,0.00483035]
[1770675350497,11.48273573,2121.8,2120.8,0.00483035]
[1770675350697,11.48273573,2121.8,2120.8,11.33025526]
[1770675354700,11.48273573,2122.1,2120.8,11.33025526]
[1770675355400,11.48273573,2122.1,2120.8,14.10456163]
[1770675356196,11.71849573,2122.1,2120.8,14.10456163]
[1770675356394,11.71849573,2122.1,2120.8,11.33025526]
[1770675357203,11.48273573,2122.0,2120.8,11.33025526]
[1770675359999,11.48273573,2122.0,2120.8,14.10456163]
[1770675360695,11.48273573,2122.0,2121.0,11.32542491]
[1770675361204,41.96773573,2122.4,2121.1,11.32542491]
[1770675361999,11.4883238,2122.6,2121.5,11.32542491]
[1770675362204,2.81638858,2121.9,2120.9,11.32542491]
[1770675362499,11.48273573,2121.8,2120.8,11.32598546]
[1770675362699,11.48273573,2122.0,2120.8,11.32598546]
[1770675362897,11.48273573,2122.2,2120.9,11.32542491]
[1770675363100,42.31754108,2122.4,2121.1,11.32542491]
[1770675363101,11.48273573,2122.4,2121.1,11.32542491]
[1770675363397,14.29912431,2122.4,2121.1,11.32542491]
[1770675364796,11.48273573,2122.0,2120.9,11.32542491]
[1770675364994,11.48273573,2121.5,2120.8,0.00056055]
[1770675365199,11.48273573,2121.4,2120.8,0.00056055]
[1770675365402,14.29912431,2121.4,2120.8,0.00056055]
[1770675365600,11.48273573,2121.4,2120.8,0.00056055]
[1770675366395,11.48273573,2121.6,2120.8,0.00056055]
[1770675368601,11.48273573,2121.8,2120.8,0.00056055]
[1770675368814,2.81638858,2122.0,2120.8,0.00056055]
[1770675368815,11.48273573,2122.0,2120.8,0.00056055]
[1770675369910,11.48273573,2122.1,2120.8,0.00056055]
[1770675371203,11.48273573,2122.1,2120.8,11.32598546]
[1770675374007,14.29912431,2122.1,2120.8,11.32598546]
[1770675374505,42.55329108,2122.2,2120.8,0.00056055]
[1770675374506,11.48273573,2121.9,2120.8,0.00056055]
[1770675374709,11.48273573,2121.5,2120.8,0.00056055]
[1770675377011,11.48273573,2121.5,2120.4,11.32542491]
[1770675377012,11.48273573,2121.3,2120.0,11.32542491]
[1770675377307,14.29912431,2121.3,2120.0,11.32542491]
[1770675377510,11.48273573,2121.3,2120.0,11.32542491]
[1770675378107,11.48273573,2121.3,2120.0,11.33092224]
[1770675378708,11.48273573,2121.3,2120.1,11.32542491]
[1770675382114,11.39014913,2120.9,2120.0,0.00549733]
[1770675382425,11.39477152,2120.9,2120.0,0.00549733]
[1770675382711,11.39014913,2120.7,2120.0,0.00549733]
[1770675383611,11.39014913,2120.7,2120.0,10.85221174]
[1770675386111,0.00462239,2120.9,2120.0,10.85221174]
[1770675388424,11.39477152,2120.9,2120.0,10.85221174]
[1770675390817,0.00462239,2120.9,2120.0,10.85221174]
[1770675396321,11.39477152,2120.9,2120.0,10.85221174]
[1770675398027,0.00462239,2120.9,2120.0,10.85221174]
[1770675398819,0.00462239,2120.9,2120.2,10.84671441]
[1770675401725,11.39477152,2120.9,2120.2,10.84671441]
[1770675404433,0.00462239,2120.9,2120.2,10.84671441]
[1770675408835,11.39477152,2120.9,2120.2,10.84671441]
[1770675409538,11.39477152,2120.9,2120.0,0.00549733]
[1770675409539,11.63067152,2120.9,2120.1,11.6282538]
[1770675410941,11.63067152,2120.9,2120.0,0.00549733]
[1770675411142,11.52005731,2120.4,2119.4,11.6282538]
[1770675412139,11.52005731,2120.4,2119.4,11.63388898]
[1770675413039,11.52005731,2120.5,2119.4,11.63388898]
[1770675414843,11.52005731,2120.5,2119.6,11.6282538]
[1770675417349,11.52005731,2120.5,2119.4,11.63388898]
[1770675417544,11.52005731,2120.5,2119.4,11.86994898]
[1770675417940,11.52005731,2120.5,2119.4,11.63388898]
[1770675419546,11.52005731,2120.3,2119.4,11.63388898]
[1770675420458,11.52005731,2120.5,2119.4,11.63388898]
[1770675424462,11.52005731,2120.8,2119.4,11.63388898]
[1770675429561,14.33644589,2120.8,2119.5,11.6282538]
[1770675429767,11.52005731,2120.8,2119.5,11.6282538]
[1770675430261,14.33644589,2120.8,2119.5,11.6282538]
[1770675434863,2.82101097,2120.9,2120.2,0.23597]
[1770675435063,17.15322331,2121.1,2120.3,11.6282538]
[1770675435064,11.52005731,2121.1,2120.3,11.6282538]
[1770675436069,11.52447424,2121.1,2120.3,11.6282538]
[1770675441872,11.39820587,2121.3,2120.3,14.41565728]
[1770675442077,11.39820587,2121.3,2120.3,11.6282538]
[1770675442877,11.40304671,2121.3,2120.3,11.6282538]
[1770675444871,3.05217858,2121.8,2120.5,11.44050616]
[1770675445078,11.39820587,2121.7,2120.7,11.44050616]
[1770675445976,11.40412015,2121.7,2120.7,11.44050616]
[1770675452184,11.39820587,2121.5,2120.5,11.44050616]
[1770675456890,11.39820587,2121.5,2120.5,11.67643616]
[1770675460595,0.00591428,2121.7,2120.5,11.67643616]
[1770675460891,0.00591428,2121.7,2120.8,11.44050616]
[1770675461692,0.00591428,2121.7,2120.8,14.21661199]
[1770675461892,0.00591428,2121.7,2120.9,11.44050616]
[1770675462092,0.00591428,2121.7,2120.9,11.44479826]
[1770675462590,11.40412015,2121.7,2120.9,11.44479826]
[1770675469095,11.39820587,2122.3,2121.3,11.44050616]
[1770675470099,11.4029823,2122.3,2121.3,11.44050616]
[1770675470297,11.05335978,2122.9,2122.1,11.03626115]
[1770675470898,11.05335978,2123.3,2122.1,11.03626115]
[1770675471400,11.05695405,2123.3,2122.1,11.03626115]
[1770675472394,11.05695405,2123.3,2122.3,11.03626115]
[1770675472593,0.00359427,2123.3,2122.3,11.03626115]
[1770675473597,11.05335978,2123.9,2122.5,11.03626115]
[1770675473901,11.05335978,2123.9,2122.7,11.03626115]
[1770675474800,11.05779346,2123.9,2122.7,11.04118357]
[1770675480199,11.05335978,2123.7,2122.7,0.00492242]
[1770675480393,11.05335978,2123.7,2121.9,5.94016532]
[1770675480394,11.05335978,2123.5,2122.4,11.03626115]
[1770675480598,11.05335978,2123.3,2122.3,0.2633985]
[1770675481302,11.05335978,2123.3,2121.5,2.9352741]
[1770675481303,11.05335978,2123.1,2122.0,11.03626115]
[1770675481606,11.05335978,2122.9,2122.0,11.04018031]
[1770675481801,11.05335978,2123.7,2122.2,11.03626115]
[1770675481999,11.05335978,2123.7,2122.6,11.03626115]
[1770675482204,11.05335978,2123.7,2122.8,11.03626115]
[1770675483904,11.06335978,2123.7,2122.8,11.03626115]
[1770675485008,11.29893978,2123.7,2122.3,11.03626115]
[1770675486608,11.05335978,2123.4,2122.3,11.03626115]
[1770675487104,11.05335978,2123.2,2122.1,11.03626115]
[1770675487909,11.05335978,2123.0,2122.1,11.03626115]
[1770675489207,11.05335978,2122.8,2122.0,0.00391916]
[1770675489798,11.05335978,2122.6,2122.0,0.00391916]
[1770675490811,11.05335978,2122.6,2121.6,11.03626115]
[1770675491608,5.79714,2123.1,2121.4,11.03626115]
[1770675491609,11.05335978,2122.4,2121.4,11.03626115]
[1770675491809,11.05335978,2122.4,2121.4,11.04174567]
[1770675491810,11.05335978,2122.2,2121.4,11.04174567]
[1770675492604,5.79979,2122.1,2120.7,11.03626115]
[1770675492811,11.05335978,2121.6,2120.7,11.03626115]
[1770675493218,11.05335978,2121.4,2120.5,11.03626115]
[1770675493513,11.05335978,2121.4,2119.9,11.03626115]
[1770675493711,11.05335978,2121.4,2119.9,11.04067606]
[1770675494011,11.05335978,2121.0,2119.9,11.04067606]
[1770675494217,11.05335978,2121.0,2119.9,0.00441491]
[1770675494218,41.52535978,2121.0,2119.9,0.00441491]
[1770675494510,11.05335978,2120.9,2119.9,0.00441491]
[1770675494702,11.05875082,2120.9,2119.9,0.00441491]
[1770675495105,11.05335978,2120.6,2119.0,11.03626115]
[1770675496017,11.05335978,2120.6,2119.0,11.04113996]
[1770675496411,11.05335978,2120.4,2119.0,11.04113996]
[1770675499020,11.05335978,2120.8,2119.2,11.03626115]
[1770675500119,11.3215485,2120.6,2119.2,11.03626115]
[1770675501619,11.32197896,2120.4,2119.2,11.03626115]
[1770675507823,11.11512452,2120.2,2119.2,11.03626115]
[1770675509926,11.11512452,2120.2,2119.0,0.00487881]
[1770675509927,11.09334065,2120.0,2119.0,10.72796003]
[1770675510427,11.09334065,2120.2,2119.1,10.72308122]
[1770675510623,11.09334065,2120.5,2119.3,10.72308122]
[1770675515630,16.08082107,2120.1,2119.0,0.00487881]
[1770675515831,10.27561107,2119.5,2118.7,9.72749613]
[1770675516136,11.27119616,2119.3,2118.3,10.72308122]
[1770675516638,11.27119616,2119.3,2118.0,10.72308122]
[1770675516838,11.27119616,2118.7,2118.0,0.00383097]
[1770675517439,11.27119616,2118.7,2117.6,10.72308122]
[1770675518141,3.17594753,2119.3,2117.6,10.72308122]
[1770675518142,11.24961367,2119.1,2117.6,10.72308122]
[1770675518347,11.24961367,2119.1,2117.6,10.72854414]
[1770675518639,11.24961367,2119.1,2117.6,10.96479414]
[1770675519039,0.00460343,2119.3,2118.2,10.72308122]
[1770675519242,11.2542171,2119.3,2118.2,10.72308122]
[1770675529548,0.00460343,2119.3,2118.2,10.72308122]
[1770675529751,0.00460343,2119.3,2118.4,10.87086262]
[1770675530146,11.11061816,2119.3,2118.4,10.87086262]
[1770675530349,11.10601473,2118.9,2117.7,10.87086262]
[1770675530954,11.10601473,2118.8,2117.6,0.00546292]
[1770675531160,11.10601473,2118.8,2117.6,10.87632554]
[1770675531461,11.34213473,2118.8,2117.6,10.87632554]
[1770675536159,11.10601473,2118.8,2117.6,10.87632554]
[1770675541763,11.10601473,2118.8,2117.6,11.11257554]
[1770675543365,11.07656354,2119.1,2117.6,11.11257554]
[1770675544365,11.08045921,2119.0,2117.6,11.11257554]
[1770675545267,11.08045921,2118.9,2117.6,11.11257554]
[1770675545662,11.08045921,2118.8,2117.6,11.11257554]
[1770675548472,10.95772727,2118.9,2117.6,11.11257554]
[1770675552075,10.95867584,2118.8,2117.6,11.11257554]
[1770675553165,2.81867885,2118.9,2118.0,0.23621]
[1770675553370,13.78195812,2119.3,2118.3,10.87086262]
[1770675553676,10.96327927,2119.3,2118.3,10.87086262]
[1770675556977,0.00460343,2119.3,2118.3,10.87086262]
[1770675557768,42.31754108,2119.9,2119.1,5.80789]
[1770675557972,8.32449638,2120.6,2119.1,5.80789]
[1770675557973,10.45931715,2120.4,2119.4,1.0]
[1770675558176,10.45931715,2120.4,2119.4,3.74534887]
[1770675558381,10.45931715,2120.4,2119.5,1.0]
[1770675558574,10.45931715,2120.4,2119.3,2.74534887]
[1770675558878,10.46415033,2120.4,2119.3,3.74919957]
[1770675559067,10.46415033,2120.4,2119.3,1.0038507]
[1770675559275,10.46415033,2120.4,2119.3,5.44043422]
[1770675559674,10.46415033,2120.4,2119.4,0.88692135]
[1770675559879,10.46415033,2120.4,2119.5,0.88692135]
[1770675563486,10.46415033,2120.4,2119.3,1.40937319]
[1770675567985,10.46415033,2120.4,2119.5,1.50347475]
[1770675568494,10.46415033,2120.4,2119.3,5.93068137]
[1770675568686,10.46415033,2120.4,2119.3,1.50732545]
[1770675570188,10.46415033,2120.4,2119.3,0.0038507]
[1770675571293,10.75275848,2120.0,2119.3,0.0038507]
[1770675574687,10.75275848,2120.0,2119.3,1.95746375]
[1770675576796,10.75275848,2120.0,2119.3,0.0038507]
[1770675577991,10.75275848,2120.0,2119.3,1.97252665]
[1770675583199,10.75275848,2120.0,2119.3,4.70594518]
[1770675583502,10.75275848,2120.0,2119.3,0.0038507]
[1770675583691,10.75275848,2120.0,2119.2,0.75418289]
[1770675583897,10.75275848,2120.0,2118.4,4.80082661]
[1770675584205,10.61074616,2119.6,2118.6,10.37166308]
[1770675584401,10.61074616,2119.4,2118.1,10.37166308]
[1770675584706,10.61074616,2119.4,2118.3,10.37166308]
[1770675584906,10.61074616,2119.4,2118.4,4.21842994]
[1770675585115,10.61074616,2119.4,2118.4,10.37166308]
[1770675588309,10.61074616,2119.4,2118.1,10.15961343]
[1770675588613,10.61074616,2119.4,2118.5,10.15544443]
[1770675591614,10.61074616,2119.4,2118.4,0.23617]
[1770675591915,10.61074616,2119.4,2118.5,10.18630379]
[1770675598215,10.61074616,2119.4,2118.2,10.1912001]
[1770675598413,10.61074616,2119.4,2118.4,10.1912001]
[1770675598919,10.61074616,2119.4,2118.6,10.1912001]
[1770675599519,10.75323448,2119.6,2118.6,10.1912001]
[1770675601515,10.75323448,2120.3,2118.8,10.13721656]
[1770675602509,10.75323448,2120.3,2119.0,10.11590856]
[1770675604916,10.75323448,2119.9,2118.6,10.07739654]
[1770675605523,10.75323448,2119.9,2118.8,10.07739654]
[1770675609621,10.75323448,2119.9,2118.7,0.23614]
[1770675609826,10.75323448,2119.9,2118.3,29.56516698]
[1770675609827,10.75323448,2119.4,2118.3,10.18863971]
[1770675610725,10.75323448,2119.4,2118.1,10.19280871]
[1770675611121,2.94316698,2119.5,2118.1,10.19280871]
[1770675611122,10.75323448,2119.2,2118.1,10.19280871]
[1770675611324,10.75323448,2119.2,2118.1,0.004169]
[1770675612326,10.75323448,2119.0,2118.1,0.004169]
[1770675612622,10.75323448,2119.0,2117.5,5.4930191]
[1770675612828,10.75323448,2118.4,2117.3,10.29127416]
[1770675613025,78.57455451,2118.9,2116.5,15.80379937]
[1770675613026,10.75323448,2118.0,2116.8,10.29127416]
[1770675613829,10.75916893,2118.0,2116.8,10.63368502]
[1770675616525,10.75916893,2118.0,2116.8,10.87002502]
[1770675617819,0.00593445,2118.0,2117.0,0.23632]
[1770675618024,0.00593445,2118.0,2117.1,10.44100176]
[1770675618426,0.00593445,2118.0,2117.3,10.44100176]
[1770675618625,10.75323448,2118.6,2117.5,10.44100176]
[1770675619733,10.75797896,2118.6,2117.5,10.44100176]
[1770675619933,10.75797896,2118.6,2117.7,10.57383815]
[1770675621134,10.75797896,2118.6,2117.5,10.57399171]
[1770675621332,10.75797896,2118.6,2117.2,10.57399171]
[1770675623226,0.00474448,2118.6,2118.0,10.73030429]
[1770675623533,11.06232029,2118.6,2118.0,10.73030429]
[1770675629530,11.06232029,2118.6,2117.8,10.73030429]
[1770675629840,11.06232029,2118.6,2117.7,10.73030429]
[1770675633137,11.29847029,2118.6,2117.4,10.73030429]
[1770675635841,11.06232029,2118.6,2117.4,10.73030429]
[1770675637636,0.00474448,2118.6,2117.6,10.73030429]
[1770675638242,11.06232029,2118.6,2117.6,10.73030429]
[1770675640043,11.06232029,2118.6,2117.4,10.73030429]
[1770675641246,11.05757581,2118.4,2117.4,10.73030429]
[1770675641441,11.05757581,2118.4,2117.2,10.73030429]
[1770675642246,2.80884945,2118.9,2118.1,5.81055]
[1770675642247,2.30901945,2118.9,2118.1,5.81055]
[1770675642544,11.05757581,2119.5,2118.5,10.73030429]
[1770675643042,11.05757581,2119.7,2118.8,10.73030429]
[1770675643448,11.06211723,2119.7,2118.8,10.73491606]
[1770675648045,11.07211723,2119.7,2118.8,10.73491606]
[1770675653845,11.07211723,2119.7,2118.8,0.00461177]
[1770675654047,11.07211723,2119.7,2118.8,11.19340012]
[1770675657547,11.07211723,2119.7,2118.8,0.00461177]
[1770675657747,11.07211723,2119.7,2118.8,11.19340012]
[1770675658340,11.04077129,2119.5,2118.6,11.18878835]
[1770675659547,11.04077129,2119.5,2118.6,11.19361071]
[1770675660546,11.05531271,2119.7,2118.6,11.19361071]
[1770675661439,11.05531271,2119.7,2118.8,11.18878835]
[1770675661645,0.01454142,2119.7,2118.9,11.18878835]
[1770675661847,11.04077129,2120.5,2119.1,11.18878835]
[1770675662045,11.04077129,2120.5,2119.5,11.18878835]
[1770675662245,11.04077129,2121.1,2119.7,11.18878835]
[1770675662744,11.04565096,2121.1,2119.7,11.18878835]
[1770675663851,11.04077129,2120.7,2119.7,11.18878835]
[1770675665346,11.04077129,2120.5,2119.1,0.23609]
[1770675665543,11.04077129,2120.5,2119.2,11.18878835]
[1770675666253,11.04077129,2120.3,2119.2,11.18878835]
[1770675668054,11.04077129,2120.1,2119.0,11.18878835]
[1770675669350,11.04077129,2119.9,2118.6,11.19361071]
[1770675672054,11.04077129,2119.7,2118.6,11.19361071]
[1770675672259,53.16289083,2120.1,2118.6,11.19361071]
[1770675672455,11.04077129,2120.0,2118.9,11.18878835]
[1770675680775,11.09647176,2120.2,2119.1,10.61736635]
[1770675681166,36.3671926,2120.8,2119.0,2.74343499]
[1770675681167,11.09647176,2120.0,2119.0,2.74343499]
[1770675681371,11.09647176,2119.8,2118.7,10.61736635]
[1770675682266,11.09647176,2120.0,2118.8,10.61736635]
[1770675682465,11.09647176,2120.0,2118.9,10.61736635]
[1770675685874,11.09647176,2120.2,2119.1,10.61736635]
[1770675686177,11.09647176,2120.2,2119.2,10.61736635]
[1770675688680,11.33247176,2119.9,2118.6,10.62218871]
[1770675688978,11.09647176,2119.9,2118.7,10.61736635]
[1770675691478,11.09647176,2119.9,2118.8,10.61736635]
[1770675693286,11.09647176,2119.9,2118.9,10.61736635]
[1770675693677,11.09647176,2119.9,2118.7,2.7530386]
[1770675693977,11.09647176,2119.5,2118.6,10.62218871]
[1770675694176,11.10052199,2119.5,2118.6,10.62218871]
[1770675697791,11.10052199,2119.5,2118.7,10.61736635]
[1770675704792,11.09647176,2119.9,2119.1,10.61736635]
[1770675705094,11.09647176,2119.9,2118.9,10.61736635]
[1770675705692,11.09647176,2119.9,2118.8,2.75235819]
[1770675705693,11.09647176,2119.7,2118.6,0.00482236]
[1770675705893,11.09647176,2119.6,2118.6,0.00482236]
[1770675706094,11.09647176,2119.1,2118.6,2.36e-06]
[1770675706294,11.09647176,2119.1,2118.1,10.61736635]
[1770675707194,11.09647176,2119.1,2118.1,10.62245001]
[1770675719007,11.09647176,2119.1,2118.2,10.54476446]
[1770675720809,11.37504326,2119.4,2118.2,10.54476446]
[1770675721009,11.37504326,2119.4,2118.3,10.54476446]
[1770675721905,11.37504326,2119.4,2118.3,10.78093446]
[1770675722706,14.20115732,2119.4,2118.3,10.78093446]
[1770675722905,14.43722732,2119.4,2118.3,10.54476446]
[1770675723205,11.37504326,2119.1,2118.1,10.54984812]
[1770675726712,11.37504326,2119.1,2118.1,9.54984812]
[1770675727817,11.37504326,2119.1,2118.1,9.55421194]
[1770675729706,11.37504326,2119.1,2118.3,10.54476446]
[1770675730714,11.37504326,2119.6,2118.3,10.54476446]
[1770675732116,14.20115732,2119.6,2118.3,10.54476446]
[1770675735222,14.20115732,2119.6,2118.4,10.54476446]
[1770675738630,14.20115732,2119.6,2118.2,0.23619]
[1770675738631,11.37504326,2119.0,2117.6,10.54476446]
[1770675738928,11.37504326,2118.9,2117.6,10.54476446]
[1770675739523,14.20115732,2118.9,2117.6,10.54476446]
[1770675739723,14.20115732,2118.9,2117.6,10.54976368]
[1770675741028,11.07128942,2118.7,2117.6,10.54976368]
[1770675741430,11.07128942,2118.7,2117.8,10.59225708]
[1770675742229,11.07128942,2118.4,2117.6,10.5972563]
[1770675742533,0.00418948,2118.4,2117.7,10.59225708]
[1770675742938,11.07128942,2118.8,2118.0,10.59225708]
[1770675743435,11.07128942,2118.8,2118.2,10.59225708]
[1770675744133,11.07513938,2118.8,2118.2,10.59225708]
[1770675749434,11.07513938,2118.8,2118.2,15.31145708]
[1770675749631,11.07513938,2118.8,2118.2,10.59225708]
[1770675750034,11.07513938,2118.8,2118.2,15.31145708]
[1770675751542,11.07513938,2118.8,2118.3,10.59225708]
[1770675753351,11.31126938,2118.8,2117.6,0.00499922]
[1770675753645,11.07128942,2118.5,2117.6,10.5972563]
[1770675753846,11.07128942,2118.5,2117.7,10.59225708]
[1770675754239,11.07128942,2118.5,2118.0,10.59225708]
[1770675756842,11.07128942,2118.5,2118.1,4.7192]
[1770675757140,11.07128942,2118.5,2118.1,15.31145708]
[1770675757336,11.07128942,2118.5,2118.1,4.7192]
[1770675757840,11.07128942,2118.5,2118.1,15.31145708]
[1770675759845,33.59609402,2118.8,2117.2,0.31845898]
[1770675759846,11.07128942,2118.0,2117.2,0.08216898]
[1770675760148,11.07128942,2117.5,2116.4,10.59225708]
[1770675760642,11.07128942,2117.2,2116.4,0.3108262]
[1770675760850,11.07128942,2117.0,2116.4,0.31471562]
[1770675761044,11.07128942,2117.0,2116.4,0.00388942]
[1770675761237,11.07128942,2117.0,2115.8,10.59225708]
[1770675762338,30.533,2116.9,2115.8,10.59799177]
[1770675762539,11.07128942,2116.8,2115.8,10.59799177]
[1770675763140,11.07128942,2116.8,2115.8,0.00573469]
[1770675763446,11.07128942,2116.8,2115.8,10.59799177]
[1770675763650,11.07128942,2116.8,2115.8,0.00573469]
[1770675764143,11.07128942,2116.8,2115.8,10.59799177]
[1770675764540,11.07128942,2116.8,2115.9,10.59225708]
[1770675764744,11.07128942,2116.6,2115.9,10.59225708]